[Event "Late-Titled-Tuesday-Blitz-June-18-2024"]
[Site "Chess.com"]
[Date "2024.06.18"]
[Round "8"]
[White "ellatambien"]
[Black "zverr1"]
[Result "1-0"]
[WhiteElo "2711"]
[BlackElo "2543"]
[TimeControl "180+1"]
[EndTime "15:30:39 PDT"]
[Termination "ellatambien won by checkmate"]

1. e4 {[%clk 0:03:00.9]} 1... c5 {[%clk 0:02:59.8]} 2. Nf3 {[%clk 0:03:00.3]}
2... Nc6 {[%clk 0:02:59.2]} 3. d4 {[%clk 0:02:59.7]} 3... cxd4 {[%clk
0:03:00.1]} 4. Nxd4 {[%clk 0:02:59]} 4... g6 {[%clk 0:03:00.1]} 5. c4 {[%clk
0:02:56.8]} 5... Nf6 {[%clk 0:02:59.9]} 6. Nc3 {[%clk 0:02:56.5]} 6... Nxd4
{[%clk 0:03:00.2]} 7. Qxd4 {[%clk 0:02:56]} 7... d6 {[%clk 0:03:01.1]} 8. Bg5
{[%clk 0:02:55.8]} 8... Bg7 {[%clk 0:03:01.4]} 9. Qd2 {[%clk 0:02:55.9]} 9...
O-O {[%clk 0:03:01.8]} 10. Bd3 {[%clk 0:02:55.9]} 10... Be6 {[%clk 0:03:02.1]}
11. O-O {[%clk 0:02:32.2]} 11... Qa5 {[%clk 0:03:01.8]} 12. b3 {[%clk 0:02:28]}
12... Rfc8 {[%clk 0:02:59]} 13. Rfe1 {[%clk 0:02:20.1]} 13... a6 {[%clk
0:02:49.4]} 14. Rac1 {[%clk 0:02:13.9]} 14... b5 {[%clk 0:02:44.3]} 15. Nd5
{[%clk 0:02:11.2]} 15... Qxd2 {[%clk 0:02:41]} 16. Bxd2 {[%clk 0:02:12.1]} 16...
Bxd5 {[%clk 0:02:26.8]} 17. exd5 {[%clk 0:02:13]} 17... bxc4 {[%clk 0:02:24.3]}
18. Bxc4 {[%clk 0:02:10.7]} 18... Kf8 {[%clk 0:02:18.9]} 19. b4 {[%clk
0:02:08.1]} 19... Nd7 {[%clk 0:02:12.1]} 20. Bb3 {[%clk 0:02:05.4]} 20... Ne5
{[%clk 0:01:59.4]} 21. Kf1 {[%clk 0:01:38.9]} 21... Rab8 {[%clk 0:01:19.6]} 22.
Ke2 {[%clk 0:01:36.6]} 22... Ke8 {[%clk 0:00:55.9]} 23. f4 {[%clk 0:01:36]}
23... Nd7 {[%clk 0:00:53.8]} 24. Kd3 {[%clk 0:01:31.5]} 24... Kd8 {[%clk
0:00:48]} 25. Rc6 {[%clk 0:01:29.3]} 25... Nb6 {[%clk 0:00:33]} 26. Be3 {[%clk
0:01:19.7]} 26... Nd7 {[%clk 0:00:24.2]} 27. Rec1 {[%clk 0:01:14.2]} 27... Bb2
{[%clk 0:00:19.4]} 28. Rxc8+ {[%clk 0:01:08.8]} 28... Rxc8 {[%clk 0:00:19.3]}
29. Rc6 {[%clk 0:01:09.1]} 29... Ba3 {[%clk 0:00:15.8]} 30. Kc3 {[%clk
0:00:55.6]} 30... Rb8 {[%clk 0:00:15.7]} 31. Rc4 {[%clk 0:00:40.1]} 31... Nb6
{[%clk 0:00:11.7]} 32. Bxb6+ {[%clk 0:00:39.3]} 32... Rxb6 {[%clk 0:00:12.6]}
33. Ba4 {[%clk 0:00:38.7]} 33... Bc1 {[%clk 0:00:08.9]} 34. Bc6 {[%clk
0:00:36.2]} 34... e6 {[%clk 0:00:05]} 35. a4 {[%clk 0:00:34.6]} 35... Ke7 {[%clk
0:00:03.7]} 36. b5 {[%clk 0:00:31.3]} 36... axb5 {[%clk 0:00:03.2]} 37. Bxb5
{[%clk 0:00:31.3]} 37... Rb7 {[%clk 0:00:02.8]} 38. Bc6 {[%clk 0:00:28.2]} 38...
Ra7 {[%clk 0:00:02.3]} 39. g3 {[%clk 0:00:21.7]} 39... exd5 {[%clk 0:00:02.7]}
40. Bxd5 {[%clk 0:00:21.7]} 40... f5 {[%clk 0:00:02.1]} 41. Kb3 {[%clk
0:00:20.4]} 41... Be3 {[%clk 0:00:02.4]} 42. Rb4 {[%clk 0:00:17.9]} 42... Bc5
{[%clk 0:00:02.4]} 43. Rb5 {[%clk 0:00:16.1]} 43... Kd7 {[%clk 0:00:02.1]} 44.
a5 {[%clk 0:00:15.8]} 44... h6 {[%clk 0:00:01]} 45. Bb7 {[%clk 0:00:12.4]} 45...
g5 {[%clk 0:00:01.3]} 46. fxg5 {[%clk 0:00:11.8]} 46... hxg5 {[%clk 0:00:02.2]}
47. a6 {[%clk 0:00:12.1]} 47... Kc7 {[%clk 0:00:01.9]} 48. Kc4 {[%clk
0:00:11.5]} 48... Kd7 {[%clk 0:00:01.9]} 49. Rb2 {[%clk 0:00:11]} 49... f4
{[%clk 0:00:02.1]} 50. gxf4 {[%clk 0:00:09.7]} 50... gxf4 {[%clk 0:00:03]} 51.
Kd3 {[%clk 0:00:08.8]} 51... f3 {[%clk 0:00:03.1]} 52. h4 {[%clk 0:00:07.5]}
52... f2 {[%clk 0:00:03.3]} 53. Ke2 {[%clk 0:00:07.6]} 53... Ke6 {[%clk
0:00:03.4]} 54. Rb3 {[%clk 0:00:07.6]} 54... Kf6 {[%clk 0:00:03.6]} 55. Rg3
{[%clk 0:00:07.3]} 55... d5 {[%clk 0:00:01.8]} 56. h5 {[%clk 0:00:06.8]} 56...
d4 {[%clk 0:00:02.4]} 57. Kxf2 {[%clk 0:00:06.9]} 57... d3+ {[%clk 0:00:02.5]}
58. Ke1 {[%clk 0:00:07.1]} 58... Bb4+ {[%clk 0:00:01.8]} 59. Kd1 {[%clk
0:00:07.5]} 59... Bd6 {[%clk 0:00:01.6]} 60. Rxd3 {[%clk 0:00:06.9]} 60... Bf4
{[%clk 0:00:02.1]} 61. Rf3 {[%clk 0:00:06.6]} 61... Kg5 {[%clk 0:00:02.4]} 62.
Rxf4 {[%clk 0:00:07.1]} 62... Kxf4 {[%clk 0:00:03.3]} 63. h6 {[%clk 0:00:07.6]}
63... Ke5 {[%clk 0:00:03.9]} 64. h7 {[%clk 0:00:08.1]} 64... Kd6 {[%clk
0:00:04.6]} 65. h8=Q {[%clk 0:00:08.7]} 65... Kc7 {[%clk 0:00:05]} 66. Qe5+
{[%clk 0:00:08.8]} 66... Kb6 {[%clk 0:00:05.2]} 67. Qd4+ {[%clk 0:00:09.1]}
67... Ka5 {[%clk 0:00:05.6]} 68. Qxa7 {[%clk 0:00:09.9]} 68... Kb5 {[%clk
0:00:06.2]} 69. Bc8 {[%clk 0:00:09.9]} 69... Kc6 {[%clk 0:00:06.4]} 70. Qb7+
{[%clk 0:00:09.9]} 70... Kc5 {[%clk 0:00:06.6]} 71. a7 {[%clk 0:00:10.2]} 71...
Kd6 {[%clk 0:00:07.5]} 72. Bd7 {[%clk 0:00:10.6]} 72... Ke7 {[%clk 0:00:07.2]}
73. Ke2 {[%clk 0:00:11.5]} 73... Kd6 {[%clk 0:00:07.8]} 74. Kf3 {[%clk
0:00:12.4]} 74... Kc5 {[%clk 0:00:08.5]} 75. Kg4 {[%clk 0:00:13.3]} 75... Kd6
{[%clk 0:00:09.4]} 76. Kh5 {[%clk 0:00:14.1]} 76... Ke7 {[%clk 0:00:10.3]} 77.
Kh6 {[%clk 0:00:14.8]} 77... Kd6 {[%clk 0:00:11.2]} 78. Kh7 {[%clk 0:00:15.5]}
78... Ke7 {[%clk 0:00:12.1]} 79. Kh8 {[%clk 0:00:16.2]} 79... Kd6 {[%clk
0:00:13]} 80. Kg8 {[%clk 0:00:16.8]} 80... Ke7 {[%clk 0:00:13.9]} 81. Kg7 {[%clk
0:00:17.1]} 81... Kd6 {[%clk 0:00:14.8]} 82. Kf8 {[%clk 0:00:17.7]} 82... Kc5
{[%clk 0:00:15.3]} 83. Ke8 {[%clk 0:00:18.2]} 83... Kd4 {[%clk 0:00:16.2]} 84.
Kd8 {[%clk 0:00:18.8]} 84... Kc3 {[%clk 0:00:17.1]} 85. Kc8 {[%clk 0:00:19.5]}
85... Kd2 {[%clk 0:00:18]} 86. Be8 {[%clk 0:00:20.1]} 86... Kc1 {[%clk
0:00:18.9]} 87. Qb8 {[%clk 0:00:20.8]} 87... Kd2 {[%clk 0:00:19.8]} 88. a8=Q
{[%clk 0:00:21.3]} 88... Ke1 {[%clk 0:00:20.7]} 89. Qb2 {[%clk 0:00:21]} 89...
Kf1 {[%clk 0:00:21]} 90. Qag2+ {[%clk 0:00:20.5]} 90... Ke1 {[%clk 0:00:21.9]}
91. Qge2# {[%clk 0:00:20.3]} 1-0

[Event "Late-Titled-Tuesday-Blitz-June-18-2024"]
[Site "Chess.com"]
[Date "2024.06.18"]
[Round "8"]
[White "Zhigalko_Sergei"]
[Black "OverallStranger"]
[Result "1-0"]
[WhiteElo "2979"]
[BlackElo "2419"]
[TimeControl "180+1"]
[EndTime "15:31:11 PDT"]
[Termination "Zhigalko_Sergei won by resignation"]

1. e4 {[%clk 0:03:00.9]} 1... c5 {[%clk 0:03:00.4]} 2. Nf3 {[%clk 0:03:01]} 2...
Nc6 {[%clk 0:03:00.9]} 3. c3 {[%clk 0:03:01.1]} 3... Nf6 {[%clk 0:03:01]} 4. e5
{[%clk 0:03:01.5]} 4... Nd5 {[%clk 0:03:01.6]} 5. Bc4 {[%clk 0:03:02]} 5... Nb6
{[%clk 0:03:01.8]} 6. Bb3 {[%clk 0:03:02.6]} 6... d6 {[%clk 0:03:02.5]} 7. exd6
{[%clk 0:03:03.2]} 7... Qxd6 {[%clk 0:03:03.1]} 8. O-O {[%clk 0:03:03.5]} 8...
Be6 {[%clk 0:03:03.6]} 9. Bxe6 {[%clk 0:03:03.3]} 9... Qxe6 {[%clk 0:03:04.2]}
10. a4 {[%clk 0:03:04.2]} 10... Nd5 {[%clk 0:03:03.1]} 11. a5 {[%clk 0:03:00]}
11... a6 {[%clk 0:03:03.3]} 12. d4 {[%clk 0:02:59.8]} 12... cxd4 {[%clk
0:03:02.8]} 13. Nxd4 {[%clk 0:03:00.7]} 13... Nxd4 {[%clk 0:03:02.2]} 14. Qxd4
{[%clk 0:03:01.6]} 14... Qc6 {[%clk 0:02:40.3]} 15. Rd1 {[%clk 0:02:46.8]} 15...
e6 {[%clk 0:02:38.6]} 16. Nd2 {[%clk 0:02:46.9]} 16... Nf6 {[%clk 0:02:17]} 17.
Nf3 {[%clk 0:02:34.7]} 17... Bc5 {[%clk 0:02:12.4]} 18. Qh4 {[%clk 0:02:21.4]}
18... O-O {[%clk 0:02:08.1]} 19. Ne5 {[%clk 0:01:34.8]} 19... Qe4 {[%clk
0:01:36]} 20. Qxe4 {[%clk 0:01:28.2]} 20... Nxe4 {[%clk 0:01:36.2]} 21. Be3
{[%clk 0:01:29]} 21... Bxe3 {[%clk 0:01:31.6]} 22. fxe3 {[%clk 0:01:29.9]} 22...
Rfd8 {[%clk 0:01:28.7]} 23. Rd4 {[%clk 0:01:25.4]} 23... Rxd4 {[%clk 0:01:09.8]}
24. exd4 {[%clk 0:01:25.5]} 24... Rd8 {[%clk 0:01:01.9]} 25. Ra4 {[%clk
0:01:21.7]} 25... Rd5 {[%clk 0:00:50.8]} 26. Rc4 {[%clk 0:01:09.4]} 26... g6
{[%clk 0:00:47.1]} 27. Rc8+ {[%clk 0:00:54.3]} 27... Kg7 {[%clk 0:00:47.2]} 28.
Rc7 {[%clk 0:00:55.2]} 28... Rxa5 {[%clk 0:00:45.4]} 29. Rxf7+ {[%clk 0:00:50]}
29... Kg8 {[%clk 0:00:45.4]} 30. Rf1 {[%clk 0:00:27.5]} 30... Ra2 {[%clk
0:00:39.6]} 31. Nd3 {[%clk 0:00:27.6]} 31... Nd2 {[%clk 0:00:33.2]} 32. Re1
{[%clk 0:00:19.6]} 32... Nc4 {[%clk 0:00:30.7]} 33. Rxe6 {[%clk 0:00:09.9]}
33... Nxb2 {[%clk 0:00:28.9]} 34. Ne5 {[%clk 0:00:08.6]} 34... Ra1+ {[%clk
0:00:24.7]} 35. Kf2 {[%clk 0:00:08]} 35... Nd1+ {[%clk 0:00:25.6]} 36. Kg3
{[%clk 0:00:06.9]} 36... Nxc3 {[%clk 0:00:25.1]} 37. Re8+ {[%clk 0:00:06.5]}
37... Kg7 {[%clk 0:00:25.6]} 38. Re7+ {[%clk 0:00:07.4]} 38... Kg8 {[%clk
0:00:23.7]} 39. Rxb7 {[%clk 0:00:07.8]} 39... Ne2+ {[%clk 0:00:20.5]} 40. Kf2
{[%clk 0:00:05.1]} 40... Nxd4 {[%clk 0:00:20.7]} 41. Ng4 {[%clk 0:00:05.3]}
41... Ra2+ {[%clk 0:00:13]} 42. Kf1 {[%clk 0:00:05.6]} 42... Nf5 {[%clk
0:00:07]} 43. Nf6+ {[%clk 0:00:05.6]} 43... Kf8 {[%clk 0:00:07.7]} 44. Nxh7+
{[%clk 0:00:05.8]} 44... Ke8 {[%clk 0:00:08.3]} 45. Nf6+ {[%clk 0:00:06.4]}
45... Kf8 {[%clk 0:00:08.5]} 46. Nh7+ {[%clk 0:00:03.9]} 46... Ke8 {[%clk
0:00:09.2]} 47. Kg1 {[%clk 0:00:03.8]} 47... Ra1+ {[%clk 0:00:09]} 48. Kf2
{[%clk 0:00:03.6]} 48... Ra2+ {[%clk 0:00:09.9]} 49. Kf3 {[%clk 0:00:03.8]}
49... a5 {[%clk 0:00:09.7]} 50. Nf6+ {[%clk 0:00:03.7]} 50... Kd8 {[%clk
0:00:09.8]} 51. Ra7 {[%clk 0:00:03.5]} 51... a4 {[%clk 0:00:10.1]} 52. Nd5
{[%clk 0:00:02.5]} 52... Ra1 {[%clk 0:00:09.9]} 53. Ra8+ {[%clk 0:00:01.9]}
53... Kd7 {[%clk 0:00:09.9]} 54. Rxa4 {[%clk 0:00:02.5]} 54... Rxa4 {[%clk
0:00:08]} 55. Nb6+ {[%clk 0:00:02.8]} 55... Kc6 {[%clk 0:00:08.2]} 56. Nxa4
{[%clk 0:00:03.7]} 56... Kd5 {[%clk 0:00:08.7]} 57. Nc3+ {[%clk 0:00:03.7]}
57... Ke5 {[%clk 0:00:09.3]} 58. Ne2 {[%clk 0:00:04.5]} 58... Nh4+ {[%clk
0:00:09.4]} 59. Kg3 {[%clk 0:00:04.5]} 59... Nf5+ {[%clk 0:00:10]} 60. Kg4
{[%clk 0:00:04.9]} 60... Ne3+ {[%clk 0:00:10.6]} 61. Kf3 {[%clk 0:00:05.3]}
61... Nf5 {[%clk 0:00:11.2]} 62. Ng3 {[%clk 0:00:05]} 62... Nh4+ {[%clk
0:00:11.8]} 63. Kf2 {[%clk 0:00:05.4]} 63... Kf4 {[%clk 0:00:12.6]} 64. Nf1
{[%clk 0:00:05]} 64... Kf5 {[%clk 0:00:12.7]} 65. Ne3+ {[%clk 0:00:05.2]} 65...
Ke4 {[%clk 0:00:12.9]} 66. Kg3 {[%clk 0:00:04.5]} 66... g5 {[%clk 0:00:08.8]}
67. Nc4 {[%clk 0:00:04.7]} 67... Kf5 {[%clk 0:00:05.9]} 68. Nd6+ {[%clk
0:00:04.2]} 68... Kf6 {[%clk 0:00:06.4]} 69. Ne4+ {[%clk 0:00:03.4]} 69... Kf5
{[%clk 0:00:06.5]} 70. Nd6+ {[%clk 0:00:03.8]} 70... Kf6 {[%clk 0:00:07.1]} 71.
Kh3 {[%clk 0:00:03.9]} 71... Ng6 {[%clk 0:00:06.7]} 72. Kg4 {[%clk 0:00:02.9]}
72... Ne5+ {[%clk 0:00:06.8]} 73. Kh5 {[%clk 0:00:03.1]} 73... Ke6 {[%clk
0:00:06.1]} 74. Ne4 {[%clk 0:00:02.9]} 74... g4 {[%clk 0:00:05.5]} 75. Kh4
{[%clk 0:00:02.8]} 75... Kf5 {[%clk 0:00:06]} 76. Nf2 {[%clk 0:00:02.7]} 76...
Ng6+ {[%clk 0:00:05.7]} 77. Kg3 {[%clk 0:00:02.9]} 77... Ne5 {[%clk 0:00:06.3]}
78. Nd1 {[%clk 0:00:03.4]} 78... Kg5 {[%clk 0:00:06.6]} 79. Ne3 {[%clk
0:00:03.7]} 79... Ng6 {[%clk 0:00:07.2]} 80. Nxg4 {[%clk 0:00:03.7]} 80... Nf4
{[%clk 0:00:07.9]} 81. Ne3 {[%clk 0:00:03.9]} 81... Nh5+ {[%clk 0:00:08.3]} 82.
Kf3 {[%clk 0:00:04.3]} 82... Nf6 {[%clk 0:00:08.5]} 83. g3 {[%clk 0:00:04.7]}
83... Nh5 {[%clk 0:00:08.8]} 84. Ng2 {[%clk 0:00:04.9]} 84... Nf6 {[%clk
0:00:09.3]} 85. h4+ {[%clk 0:00:05.1]} 85... Kf5 {[%clk 0:00:09.3]} 86. Ne3+
{[%clk 0:00:05.3]} 86... Kg6 {[%clk 0:00:09.9]} 87. g4 {[%clk 0:00:05.8]} 87...
Ng8 {[%clk 0:00:10.1]} 88. Kf4 {[%clk 0:00:06.2]} 88... Ne7 {[%clk 0:00:10.7]}
89. h5+ {[%clk 0:00:04.3]} 89... Kf6 {[%clk 0:00:10.9]} 90. g5+ {[%clk
0:00:04.9]} 90... Kg7 {[%clk 0:00:11.7]} 91. Nf5+ {[%clk 0:00:05.1]} 91... Nxf5
{[%clk 0:00:10.5]} 92. Kxf5 {[%clk 0:00:06]} 92... Kf8 {[%clk 0:00:11.4]} 93. g6
{[%clk 0:00:06.3]} 93... Kg8 {[%clk 0:00:12.3]} 94. h6 {[%clk 0:00:06.9]} 94...
Kh8 {[%clk 0:00:12.8]} 95. Ke6 {[%clk 0:00:06.5]} 95... Kg8 {[%clk 0:00:13.3]}
96. g7 {[%clk 0:00:05.9]} 96... Kh7 {[%clk 0:00:12.8]} 97. Kf7 {[%clk
0:00:06.3]} 1-0

[Event "Late-Titled-Tuesday-Blitz-June-18-2024"]
[Site "Chess.com"]
[Date "2024.06.18"]
[Round "8"]
[White "DanielNaroditsky"]
[Black "K_A_S_T_O_R"]
[Result "1-0"]
[WhiteElo "3137"]
[BlackElo "2848"]
[TimeControl "180+1"]
[EndTime "15:31:12 PDT"]
[Termination "DanielNaroditsky won on time"]

1. e4 {[%clk 0:03:00.9]} 1... c5 {[%clk 0:02:59.8]} 2. c3 {[%clk 0:02:59.5]}
2... Nf6 {[%clk 0:03:00]} 3. e5 {[%clk 0:02:59.4]} 3... Nd5 {[%clk 0:03:00.5]}
4. Nf3 {[%clk 0:03:00.3]} 4... d6 {[%clk 0:02:59.6]} 5. Bc4 {[%clk 0:03:01]}
5... Nb6 {[%clk 0:02:57.1]} 6. e6 {[%clk 0:03:01.6]} 6... Bxe6 {[%clk 0:02:47]}
7. Bxe6 {[%clk 0:03:00.8]} 7... fxe6 {[%clk 0:02:47.3]} 8. d4 {[%clk 0:03:01.7]}
8... cxd4 {[%clk 0:02:44.8]} 9. cxd4 {[%clk 0:03:01.6]} 9... Qd7 {[%clk
0:02:43.8]} 10. O-O {[%clk 0:02:54.2]} 10... Nc6 {[%clk 0:02:41.2]} 11. Ng5
{[%clk 0:02:54.7]} 11... g6 {[%clk 0:02:40.2]} 12. Qf3 {[%clk 0:02:53.7]} 12...
O-O-O {[%clk 0:02:28.8]} 13. Nf7 {[%clk 0:02:54.1]} 13... Bg7 {[%clk 0:02:29.2]}
14. Nxh8 {[%clk 0:02:52.2]} 14... Rxh8 {[%clk 0:02:28.5]} 15. Be3 {[%clk
0:02:49]} 15... Nxd4 {[%clk 0:02:24.1]} 16. Bxd4 {[%clk 0:02:49.2]} 16... Bxd4
{[%clk 0:02:23.7]} 17. Nc3 {[%clk 0:02:49.7]} 17... Kb8 {[%clk 0:02:22.9]} 18.
Rfd1 {[%clk 0:02:48.6]} 18... e5 {[%clk 0:02:18.2]} 19. Ne2 {[%clk 0:02:39.1]}
19... Bc5 {[%clk 0:02:17.7]} 20. Rac1 {[%clk 0:02:36.1]} 20... Qe6 {[%clk
0:02:12.3]} 21. Nc3 {[%clk 0:02:23.3]} 21... Nd7 {[%clk 0:02:10.8]} 22. Ne4
{[%clk 0:02:17.8]} 22... Bb6 {[%clk 0:02:03.4]} 23. a4 {[%clk 0:01:48.5]} 23...
Rf8 {[%clk 0:02:00.1]} 24. Qc3 {[%clk 0:01:47.6]} 24... Nc5 {[%clk 0:01:44.3]}
25. Ng5 {[%clk 0:01:47.3]} 25... Qf5 {[%clk 0:01:40.9]} 26. a5 {[%clk
0:01:14.1]} 26... Na4 {[%clk 0:01:32.9]} 27. Qb3 {[%clk 0:01:05.5]} 27... Bxf2+
{[%clk 0:01:31.8]} 28. Kh1 {[%clk 0:01:05.8]} 28... Nc5 {[%clk 0:01:29.1]} 29.
Qc4 {[%clk 0:00:34]} 29... Qxg5 {[%clk 0:01:18.7]} 30. b4 {[%clk 0:00:34.3]}
30... Na6 {[%clk 0:01:19.1]} 31. Rf1 {[%clk 0:00:30.1]} 31... Qf4 {[%clk
0:01:10.2]} 32. Qe6 {[%clk 0:00:26.7]} 32... Nxb4 {[%clk 0:01:01.4]} 33. Qxe7
{[%clk 0:00:23.7]} 33... a6 {[%clk 0:01:01.2]} 34. Rc7 {[%clk 0:00:20.3]} 34...
Rf5 {[%clk 0:00:50.8]} 35. Rxb7+ {[%clk 0:00:09.5]} 35... Ka8 {[%clk 0:00:51.1]}
36. h3 {[%clk 0:00:03.6]} 36... Qe4 {[%clk 0:00:29.2]} 37. Rd7 {[%clk
0:00:02.5]} 37... Nc6 {[%clk 0:00:25.3]} 38. Qe8+ {[%clk 0:00:03.1]} 38... Nb8
{[%clk 0:00:25]} 39. Rxd6 {[%clk 0:00:02.3]} 39... Qc4 {[%clk 0:00:23.7]} 40.
Rdd1 {[%clk 0:00:01.8]} 40... Ba7 {[%clk 0:00:23]} 41. Rfe1 {[%clk 0:00:01.7]}
41... Qc6 {[%clk 0:00:21]} 42. Qd8 {[%clk 0:00:01.9]} 42... Rf2 {[%clk 0:00:20]}
43. Qd5 {[%clk 0:00:02.6]} 43... Qxd5 {[%clk 0:00:20.3]} 44. Rxd5 {[%clk
0:00:03.5]} 44... Nc6 {[%clk 0:00:20.8]} 45. Rd7 {[%clk 0:00:03.2]} 45... Bd4
{[%clk 0:00:20.3]} 46. Rc1 {[%clk 0:00:02.6]} 46... Nb8 {[%clk 0:00:20.1]} 47.
Rxh7 {[%clk 0:00:02.2]} 47... Rb2 {[%clk 0:00:20.5]} 48. Re7 {[%clk 0:00:02.2]}
48... Rb7 {[%clk 0:00:19.4]} 49. Re6 {[%clk 0:00:02.5]} 49... Rf7 {[%clk
0:00:19.1]} 50. Rxg6 {[%clk 0:00:02.7]} 50... e4 {[%clk 0:00:19.6]} 51. Rd6
{[%clk 0:00:03]} 51... Bf2 {[%clk 0:00:19.1]} 52. Re6 {[%clk 0:00:02.9]} 52...
e3 {[%clk 0:00:19.3]} 53. g4 {[%clk 0:00:03.7]} 53... Rf3 {[%clk 0:00:17.7]} 54.
Kh2 {[%clk 0:00:04.2]} 54... Rf7 {[%clk 0:00:15.6]} 55. Kg2 {[%clk 0:00:04.3]}
55... Kb7 {[%clk 0:00:15.9]} 56. g5 {[%clk 0:00:04.7]} 56... Nd7 {[%clk
0:00:15.3]} 57. g6 {[%clk 0:00:04.8]} 57... Rg7 {[%clk 0:00:15.8]} 58. Rb1+
{[%clk 0:00:04.7]} 58... Kc7 {[%clk 0:00:15.5]} 59. Rxa6 {[%clk 0:00:05.4]}
59... Kc8 {[%clk 0:00:12.5]} 60. Ra8+ {[%clk 0:00:05.5]} 60... Kc7 {[%clk
0:00:12.3]} 61. Ra6 {[%clk 0:00:06.3]} 61... Rg8 {[%clk 0:00:11.1]} 62. Ra7+
{[%clk 0:00:03]} 62... Kc6 {[%clk 0:00:11]} 63. Ra6+ {[%clk 0:00:03.5]} 63...
Kc5 {[%clk 0:00:10.1]} 64. Re6 {[%clk 0:00:04.3]} 64... Nf8 {[%clk 0:00:09.4]}
65. Re5+ {[%clk 0:00:03.8]} 65... Kd4 {[%clk 0:00:09.5]} 66. Rg5 {[%clk
0:00:03.7]} 66... Nxg6 {[%clk 0:00:09.9]} 67. Kf1 {[%clk 0:00:03]} 67... Bh4
{[%clk 0:00:08.6]} 68. Rg4+ {[%clk 0:00:03.3]} 68... Ke5 {[%clk 0:00:08.8]} 69.
Rb5+ {[%clk 0:00:02.4]} 69... Kf6 {[%clk 0:00:08.9]} 70. Rb6+ {[%clk 0:00:03.1]}
70... Kf5 {[%clk 0:00:09.1]} 71. Rb5+ {[%clk 0:00:03.9]} 71... Kf6 {[%clk
0:00:07.3]} 72. a6 {[%clk 0:00:04.3]} 72... Re8 {[%clk 0:00:05.4]} 73. Ke2
{[%clk 0:00:04.5]} 73... Ra8 {[%clk 0:00:02.3]} 74. Rb6+ {[%clk 0:00:04.7]}
74... Kf5 {[%clk 0:00:02.8]} 75. Rbxg6 {[%clk 0:00:05.1]} 75... Bf6 {[%clk
0:00:02.4]} 76. Kxe3 {[%clk 0:00:02.4]} 76... Rxa6 {[%clk 0:00:02.5]} 77. Ke2
{[%clk 0:00:02.9]} 77... Ra2+ {[%clk 0:00:02.4]} 78. Kd3 {[%clk 0:00:03.6]}
78... Ra3+ {[%clk 0:00:02.2]} 79. Kc4 {[%clk 0:00:03.9]} 79... Rxh3 {[%clk
0:00:03.1]} 80. Kd5 {[%clk 0:00:02.3]} 80... Rd3+ {[%clk 0:00:02.8]} 81. Kc6
{[%clk 0:00:02.6]} 81... Re3 {[%clk 0:00:01.7]} 82. Rg1 {[%clk 0:00:02.5]} 82...
Re6+ {[%clk 0:00:02.1]} 83. Kd7 {[%clk 0:00:02.9]} 83... Ra6 {[%clk 0:00:01.3]}
84. Rg8 {[%clk 0:00:02.9]} 84... Ke5 {[%clk 0:00:01.6]} 85. Re1+ {[%clk
0:00:03.1]} 85... Kf5 {[%clk 0:00:02]} 86. Rf1+ {[%clk 0:00:03.7]} 86... Ke5
{[%clk 0:00:02.3]} 87. Re8+ {[%clk 0:00:04.5]} 87... Kd5 {[%clk 0:00:02.6]} 88.
Rd1+ {[%clk 0:00:05.2]} 88... Kc5 {[%clk 0:00:02.7]} 89. Rc8+ {[%clk 0:00:04.7]}
89... Kb5 {[%clk 0:00:02.7]} 90. Rb1+ {[%clk 0:00:04.9]} 90... Ka5 {[%clk
0:00:01.9]} 91. Rc2 {[%clk 0:00:05.7]} 91... Ra7+ {[%clk 0:00:01.9]} 92. Kc6
{[%clk 0:00:06.3]} 1-0